[Event "FIDE WCCC U8 2018"]
[Site "Santiago de Compostela"]
[Date "2018.11.07"]
[Round "3"]
[White "Chennareddy, Yuvraj"]
[Black "Azadaliyev, Jahandar"]
[Result "1-0"]
[ECO "B12"]
[WhiteElo "1497"]
[BlackElo "1674"]
[Annotator "NA RC"]
[PlyCount "163"]
[EventDate "2018.11.04"]
[EventType "swiss"]
[EventCountry "ESP"]
[SourceTitle "playchess.com"]
[Source "ChessBase"]
[SourceQuality "1"]
[TimeControl "40/5400+30:1800+30"]

1. e4 {[%emt 0:00:00]} c6 {[%emt 0:00:00]} 2. d4 {[%emt 0:00:00]} d5 {[%emt 0:00:28]} 3. f3 {[%emt 0:00:23]} dxe4 {[%emt 0:01:18]} 4. fxe4 {[%emt 0:00:12]} e5 {[%emt 0:00:29]} 5. Nf3 {[%emt 0:00:24]} Be6 {[%emt 0:00:32]} 6. c3 {[%emt 0:02:05]} Nd7 {[%emt 0:06:45]} 7. Be2 {[%emt 0:11:16]} Bd6 {[%emt 0:04:08]} 8. O-O {[%emt 0:01:27]} h6 {[%emt 0:01:39]} 9. Nbd2 {[%emt 0:12:09]} Ngf6 {[%emt 0:02:38]} 10. Qc2 {[%emt 0:00:09]} O-O {[%emt 0:00:15]} 11. Nc4 {[%emt 0:02:28]} Qc7 {[%emt 0:17:44]} 12. Nxd6 {[%emt 0:00:57]} Qxd6 {[%emt 0:00:11]} 13. Nxe5 {[%emt 0:04:00]} Nxe5 {[%emt 0:00:27]} 14. Bf4 {[%emt 0:00:38]} Nfd7 {[%emt 0:00:09]} 15. dxe5 {[%emt 0:07:02]} Qc5+ {[%emt 0:02:53]} 16. Kh1 {[%emt 0:00:09]} Rad8 {[%emt 0:01:43]} 17. b4 {[%emt 0:00:49]} Qe7 {[%emt 0:03:20]} 18. Qa4 {[%emt 0:06:57]} a6 {[%emt 0:01:03]} 19. Qa5 {[%emt 0:05:09]} c5 {[%emt 0:14:14]} 20. b5 {[%emt 0:07:45]} b6 {[%emt 0:06:47]} 21. Qa4 {[%emt 0:03:45]} a5 {[%emt 0:00:13]} 22. c4 {[%emt 0:01:52]} Nb8 {[%emt 0:04:54]} 23. Rad1 {[%emt 0:10:18]} Rd4 {[%emt 0:00:25]} 24. Rxd4 {[%emt 0:01:22]} cxd4 {[%emt 0:01:47]} 25. Bc1 {[%emt 0:03:23]} Rc8 {[%emt 0:03:56]} 26. Ba3 {[%emt 0:05:35]} Qb7 {[%emt 0:03:27]} 27. Qc2 {[%emt 0:02:46]} Qd7 {[%emt 0:08:55]} 28. Bd6 {[%emt 0:02:26]} Qd8 {[%emt 0:02:09]} 29. Rd1 {[%emt 0:00:19]} Nd7 {[%emt 0:00:23]} 30. Rxd4 {[%emt 0:00:11]} Qg5 {[%emt 0:00:17]} 31. Qd2 {[%emt 0:00:31]} Qh4 {[%emt 0:00:57]} 32. g3 {[%emt 0:01:54]} Qh3 {[%emt 0:00:08]} 33. Qd1 {[%emt 0:01:41]} Kh7 {[%emt 0:07:14]} 34. Qf1 {[%emt 0:00:48]} Qxf1+ {[%emt 0:01:07]} 35. Bxf1 {[%emt 0:00:06]} h5 {[%emt 0:01:33]} 36. h4 {[%emt 0:01:09]} Kg8 {[%emt 0:01:28]} 37. Kh2 {[%emt 0:00:16]} g6 {[%emt 0:00:14]} 38. Bh3 {[%emt 0:00:14]} Kg7 {[%emt 0:00:56]} 39. Bxe6 {[%emt 0:00:46]} fxe6 {[%emt 0:00:08]} 40. Kg2 {[%emt 0:00:00]} Kf7 {[%emt 0:00:00]} 41. Kf3 {[%emt 0:00:15]} Ke8 {[%emt 0:05:20]} 42. Kf4 {[%emt 0:02:03]} Kf7 {[%emt 0:00:33]} 43. Kg5 {[%emt 0:00:18]} a4 {[%emt 0:00:58]} 44. a3 {[%emt 0:00:11]} Kg7 {[%emt 0:01:35]} 45. Be7 {[%emt 0:00:10]} Rc7 {[%emt 0:00:33]} 46. Bd8 {[%emt 0:00:11]} Rb7 {[%emt 0:00:21]} 47. Rd6 {[%emt 0:04:42]} Kf7 {[%emt 0:00:50]} 48. Bf6 {[%emt 0:10:37]} Nc5 {[%emt 0:02:30]} 49. Kf4 {[%emt 0:02:04]} Nd7 {[%emt 0:00:30]} 50. Rc6 {[%emt 0:04:14]} Nc5 {[%emt 0:02:13]} 51. Rc8 {[%emt 0:07:49]} Nd7 {[%emt 0:00:28]} 52. Bd8 {[%emt 0:01:41]} Kg7 {[%emt 0:00:45]} 53. Rc7 {[%emt 0:00:22]} Rxc7 {[%emt 0:00:15]} 54. Bxc7 {[%emt 0:00:10]} Kf7 {[%emt 0:00:50]} 55. Kg5 {[%emt 0:00:08]} Kg7 {[%emt 0:00:08]} 56. Bd8 {[%emt 0:00:07]} Kh7 {[%emt 0:00:23]} 57. Bc7 {[%emt 0:03:21]} Kg7 {[%emt 0:00:17]} 58. g4 {[%emt 0:00:05]} hxg4 {[%emt 0:00:16]} 59. Kxg4 {[%emt 0:00:06]} Kh6 {[%emt 0:00:22]} 60. Bd6 {[%emt 0:00:31]} Kg7 {[%emt 0:00:18]} 61. h5 {[%emt 0:00:39]} gxh5+ {[%emt 0:00:33]} 62. Kxh5 {[%emt 0:00:41]} Kh7 {[%emt 0:00:10]} 63. Kg5 {[%emt 0:00:54]} Kg7 {[%emt 0:00:10]} 64. Kf4 {[%emt 0:00:06]} Kf7 {[%emt 0:00:06]} 65. Ke3 {[%emt 0:00:07]} Ke8 {[%emt 0:00:06]} 66. Kd4 {[%emt 0:00:06]} Kd8 {[%emt 0:00:10]} 67. Kc3 {[%emt 0:00:07]} Kc8 {[%emt 0:00:17]} 68. Kb4 {[%emt 0:00:07]} Kb7 {[%emt 0:00:08]} 69. Kxa4 {[%emt 0:00:09]} Ka7 {[%emt 0:00:07]} 70. Kb3 {[%emt 0:00:30]} Kb7 {[%emt 0:00:06]} 71. a4 {[%emt 0:00:14]} Kc8 {[%emt 0:00:10]} 72. Kb4 {[%emt 0:00:26]} Kb7 {[%emt 0:00:10]} 73. a5 {[%emt 0:00:21]} bxa5+ {[%emt 0:00:15]} 74. Kxa5 {[%emt 0:00:07]} Nb6 {[%emt 0:00:09]} 75. c5 {[%emt 0:00:09]} Nc8 {[%emt 0:00:18]} 76. b6 {[%emt 0:00:18]} Ka8 {[%emt 0:00:08]} 77. Kb5 {[%emt 0:00:47]} Nxd6+ {[%emt 0:01:09]} 78. cxd6 {[%emt 0:00:39]} Kb8 {[%emt 0:00:14]} 79. d7 {[%emt 0:00:06]} Kb7 {[%emt 0:00:05]} 80. Kc5 {[%emt 0:00:33]} Ka6 {[%emt 0:00:18]} 81. d8=Q {[%emt 0:00:13]} Kb7 {[%emt 0:00:46]} 82. Qc7+ {[%emt 0:00:17]} 1-0

[Event "FIDE WCCC U8 2018"]
[Site "Santiago de Compostela"]
[Date "2018.11.07"]
[Round "3"]
[White "Jaakkola, Niklas"]
[Black "Grooten, Tommy"]
[Result "0-1"]
[ECO "A08"]
[WhiteElo "1469"]
[BlackElo "1649"]
[Annotator "NA RC"]
[PlyCount "66"]
[EventDate "2018.11.04"]
[EventType "swiss"]
[EventCountry "ESP"]
[SourceTitle "playchess.com"]
[Source "ChessBase"]
[SourceQuality "1"]
[TimeControl "40/5400+30:1800+30"]

1. Nf3 {[%emt 0:00:00]} d5 {[%emt 0:00:00]} 2. g3 {[%emt 0:00:00]} c5 {[%emt 0:00:00]} 3. Bg2 {[%emt 0:00:00]} Nc6 {[%emt 0:00:02]} 4. O-O {[%emt 0:00:18]} Nf6 {[%emt 0:00:17]} 5. d3 {[%emt 0:00:54]} e5 {[%emt 0:04:28]} 6. Nbd2 {[%emt 0:00:28]} Bd6 {[%emt 0:01:44]} 7. e4 {[%emt 0:00:14]} d4 {[%emt 0:00:15]} 8. Nc4 {[%emt 0:00:13]} Bc7 {[%emt 0:00:32]} 9. a4 {[%emt 0:00:17]} Be6 {[%emt 0:01:26]} 10. b3 O-O {[%emt 0:00:33]} 11. Ne1 {[%emt 0:06:01]} Nd7 {[%emt 0:00:32]} 12. f4 {[%emt 0:07:45]} Qe7 {[%emt 0:02:21]} 13. f5 {[%emt 0:00:45]} Bxc4 {[%emt 0:00:07]} 14. bxc4 {[%emt 0:00:10]} Kh8 {[%emt 0:01:00]} 15. Qf3 {[%emt 0:06:28]} Ba5 {[%emt 0:01:30]} 16. Qf2 {[%emt 0:19:37]} Bc3 {[%emt 0:00:09]} 17. Ra3 {[%emt 0:00:53]} Bb4 {[%emt 0:00:30]} 18. Ra2 {[%emt 0:00:45]} f6 {[%emt 0:00:45]} 19. Bd2 {[%emt 0:00:25]} Nb6 {[%emt 0:00:14]} 20. Nf3 {[%emt 0:05:40]} Bxd2 {[%emt 0:00:33]} 21. Qxd2 {[%emt 0:00:15]} Qd7 {[%emt 0:00:06]} 22. Rfa1 {[%emt 0:04:39]} Nb4 {[%emt 0:01:06]} 23. Ra3 {[%emt 0:01:17]} Rac8 {[%emt 0:01:29]} 24. g4 {[%emt 0:01:53]} Nc6 {[%emt 0:01:40]} 25. h4 {[%emt 0:03:44]} g6 {[%emt 0:04:20]} 26. a5 {[%emt 0:08:38]} Na8 {[%emt 0:00:12]} 27. Qh6 {[%emt 0:08:09]} Qg7 {[%emt 0:01:59]} 28. Qxg7+ {[%emt 0:02:44]} Kxg7 {[%emt 0:00:07]} 29. Rb3 {[%emt 0:06:36]} Rb8 {[%emt 0:01:54]} 30. Rb5 {[%emt 0:01:09]} Nb4 {[%emt 0:00:48]} 31. Rxc5 {[%emt 0:00:54]} Nxc2 {[%emt 0:01:17]} 32. Rb1 {[%emt 0:01:25]} Ne3 {[%emt 0:00:51]} 33. Rc7+ {[%emt 0:01:25]} Nxc7 {[%emt 0:00:07]} 0-1

[Event "FIDE WCCC U8 2018"]
[Site "Santiago de Compostela"]
[Date "2018.11.07"]
[Round "3"]
[White "Mammadov, Ziya"]
[Black "Woodward, Andy"]
[Result "1/2-1/2"]
[ECO "A06"]
[WhiteElo "1446"]
[BlackElo "1607"]
[Annotator "NA RC"]
[PlyCount "102"]
[EventDate "2018.11.04"]
[EventType "swiss"]
[EventCountry "ESP"]
[SourceTitle "playchess.com"]
[Source "ChessBase"]
[SourceQuality "1"]
[TimeControl "40/5400+30:1800+30"]

1. Nf3 d5 2. b3 Nf6 3. Bb2 c6 4. d4 Bf5 5. e3 Nbd7 6. Bd3 e6 7. O-O Be7 8. Ne5 O-O 9. f4 h5 10. Be2 g6 11. Nd2 Kg7 12. c4 Rc8 13. Ndf3 Rh8 14. Bd3 Ne4 15. Rc1 f6 16. Nxd7 Qxd7 17. cxd5 cxd5 18. Qe2 a6 19. Nd2 Bg4 20. Nf3 f5 21. Qe1 Bxf3 22. gxf3 Rxc1 23. Bxc1 Nf6 24. Bb2 Qd6 25. Qd2 Rc8 26. Rc1 Rc6 27. Rxc6 Qxc6 28. Qc3 Qxc3 29. Bxc3 Bd6 30. Kf2 Nd7 31. Ke2 Nb8 32. b4 b5 33. Kd1 Kf6 34. h4 Ke7 35. Kc2 Kd7 36. Kb3 Kc6 37. Bd2 Be7 38. Be1 Bf6 39. Bf2 Nd7 40. a4 Nb6 41. axb5+ axb5 42. Bc2 Nc4 43. Kc3 Kb6 44. e4 Kc6 45. Bd3 Kb6 46. Be2 Kc6 47. Bd3 Kb6 48. Bc2 Kc6 49. Bd3 Kb6 50. Be2 Kc6 51. exd5+ exd5 1/2-1/2